fUST/lending_fUST_20251215
["ID","MTS","AMOUNT","RATE_DAILY","PERIOD"]
[398501370,1765757834928,5000.0,0.00013552,2]
[398501371,1765757843906,5000.0,0.00013552,2]
[398501372,1765757846317,500.0,0.00013273,2]
[398501373,1765757851765,4500.01,0.00013556,2]
[398501374,1765757851793,499.99,0.00013556,2]
[398501375,1765757852004,182.62892787,0.00013106,2]
[398501376,1765757860743,5000.0,0.00013556,2]
[398501377,1765757868651,4317.39107213,0.00013556,2]
[398501378,1765757868678,682.60892787,0.00013556,2]
[398501380,1765757876632,5000.0,0.00013556,2]
[398501381,1765757884365,4317.40107213,0.00013556,2]
[398501382,1765757884395,682.59892787,0.00013556,2]
[398501383,1765757886638,500.0,0.00013273,2]
[398501384,1765757888089,500.0,0.00013273,2]
[398501385,1765757890080,150.0,7.087e-05,2]
[398501386,1765757890482,150.0,7.425e-05,2]
[398501387,1765757890890,150.0,7.762e-05,2]
[398501388,1765757891319,150.0,8.1e-05,2]
[398501389,1765757891794,150.0,8.437e-05,2]
[398501390,1765757892183,172.01,8.775e-05,2]
[398501391,1765757892439,5000.0,0.00013556,2]
[398501392,1765757892864,200.68,9.112e-05,2]
[398501393,1765757893114,229.35,9.45e-05,2]
[398501394,1765757893444,258.02,9.787e-05,2]
[398501395,1765757893995,500.0,0.00013273,2]
[398501396,1765757894256,500.0,0.00013273,2]
[398501397,1765757894352,286.69,0.00010125,2]
[398501398,1765757894386,420.66107213,0.00013273,2]
[398501399,1765757894414,79.33892787,0.00013273,2]
[398501400,1765757894471,500.0,0.00013273,2]
[398501401,1765757900476,5000.0,0.00013556,2]
[398501402,1765757908773,4420.67107213,0.00013556,2]
[398501403,1765757908800,579.32892787,0.00013556,2]
[398501404,1765757917152,5000.0,0.00013556,2]
[398501405,1765757940193,5000.0,0.00013418,2]
[398501406,1765757946908,491.27843286,0.00013273,2]
[398501407,1765757947457,500.0,0.00013273,2]
[398501408,1765757959239,150.0,7.043e-05,2]
[398501409,1765757959668,150.0,7.378e-05,2]
[398501410,1765757960099,150.0,7.714e-05,2]
[398501411,1765757960502,150.0,8.049e-05,2]
[398501412,1765757961041,151.48,8.385e-05,2]
[398501413,1765757961710,181.78,8.72e-05,2]
[398501414,1765757961932,212.08,9.055e-05,2]
[398501415,1765757962108,2863.39156714,0.00013418,2]
[398501416,1765757962135,2136.60843286,0.00013418,2]
[398501417,1765757962316,242.37,9.391e-05,2]
[398501418,1765757962897,272.67,9.726e-05,2]
[398501419,1765757963142,302.97,0.00010061,2]
[398501421,1765757984284,5000.0,0.00013418,2]
[398501423,1765758006590,2045.39156714,0.00013418,2]
[398501424,1765758006668,2954.60843286,0.00013418,2]
[398501425,1765758007862,500.0,0.00013273,2]
[398501426,1765758008683,500.0,0.00013273,2]
[398501427,1765758017610,500.0,0.00013273,2]
[398501428,1765758028726,150.0,7.047e-05,2]
[398501429,1765758029178,150.0,7.383e-05,2]
[398501430,1765758029550,5000.0,0.00013418,2]
[398501431,1765758029610,184.2,7.718e-05,2]
[398501432,1765758030038,245.6,8.054e-05,2]
[398501433,1765758030463,307.0,8.39e-05,2]
[398501434,1765758030919,368.41,8.725e-05,2]
[398501435,1765758031349,429.81,9.061e-05,2]
[398501436,1765758031768,491.21,9.396e-05,2]
[398501437,1765758032494,552.61,9.732e-05,2]
[398501438,1765758032734,614.01,0.00010067,2]
[398501439,1765758052065,5000.0,0.00013418,2]
[398501441,1765758063790,500.0,0.00013273,2]
[398501442,1765758065865,500.0,0.00013273,2]
[398501443,1765758074261,4000.01,0.00013418,2]
[398501444,1765758074344,999.99,0.00013418,2]
[398501445,1765758096381,5000.0,0.00013418,2]
[398501446,1765758103653,150.0,6.981e-05,2]
[398501447,1765758104075,150.0,7.314e-05,2]
[398501448,1765758104485,150.0,7.646e-05,2]
[398501449,1765758105192,179.5,7.978e-05,2]
[398501450,1765758105364,224.37,8.311e-05,2]
[398501451,1765758105746,269.24,8.643e-05,2]
[398501452,1765758106222,314.12,8.976e-05,2]
[398501453,1765758106736,358.99,9.308e-05,2]
[398501454,1765758107151,403.87,9.641e-05,2]
[398501455,1765758107586,448.74,9.973e-05,2]
[398501456,1765758118508,5000.0,0.00013418,2]
[398501457,1765758129760,500.0,0.00013273,2]
[398501458,1765758133863,5000.0,0.00013418,2]
[398501459,1765758139323,500.0,0.00013273,2]
[398501460,1765758141713,2585.51586021,0.00013418,2]
[398501461,1765758143629,-515.61660439,0.00013418,2]
[398501462,1765758145758,-317.82634403,0.00013418,2]
[398501463,1765758150145,-227.80245979,0.00013418,2]
[398501464,1765758152318,-369.75510181,0.00013418,2]
[398501465,1765758154277,-264.80546106,0.00013418,2]
[398501466,1765758155497,-718.67816871,0.00013418,2]
[398501467,1765758156985,5000.0,0.00013284,2]
[398501468,1765758164726,1701.01456861,0.00013418,2]
[398501469,1765758176382,150.0,7.053e-05,2]
[398501470,1765758176830,150.0,7.389e-05,2]
[398501471,1765758177243,150.0,7.725e-05,2]
[398501472,1765758177679,150.0,8.061e-05,2]
[398501473,1765758178074,150.0,8.396e-05,2]
[398501474,1765758180441,1111.63909397,0.00013418,2]
[398501475,1765758180512,3888.36090603,0.00013418,2]
[398501476,1765758186582,500.0,0.00013273,2]
[398501477,1765758188334,3280.60109871,0.00013418,2]
[398501478,1765758200216,500.0,0.00013273,2]
[398501479,1765758202484,202.62860386,0.0001283,2]
[398501480,1765758202716,416.36,0.00013273,2]
[398501481,1765758203981,1212.0593914,0.00013418,2]
[398501482,1765758204053,3787.9406086,0.00013418,2]
[398501484,1765758211799,4061.89526772,0.00013418,2]
[398501485,1765758227567,2150.17412368,0.00013418,2]
[398501486,1765758227639,2849.82587632,0.00013418,2]
[398501487,1765758235399,5000.0,0.00013418,2]
[398501488,1765758242044,150.0,7.083e-05,2]
[398501489,1765758242742,150.0,7.42e-05,2]
[398501490,1765758243100,150.0,7.757e-05,2]
[398501491,1765758243259,500.0,0.00013273,2]
[398501492,1765758243538,150.0,8.095e-05,2]
[398501493,1765758245167,500.0,0.00013273,2]
[398501494,1765758245790,500.0,0.00013273,2]
[398501495,1765758250562,50.18412368,0.00013418,2]
[398501496,1765758250636,4949.81587632,0.00013418,2]
[398501497,1765758253936,500.0,0.00013273,2]
[398501498,1765758272952,4550.19412368,0.00013418,2]
[398501499,1765758273012,449.80587632,0.00013418,2]
[398501506,1765758296385,5000.0,0.00013418,2]
[398501507,1765758303736,500.0,0.00013273,2]
[398501508,1765758310556,500.0,0.00013273,2]
[398501509,1765758319271,3550.20412368,0.00013418,2]
[398501510,1765758319352,1449.79587632,0.00013418,2]
[398501511,1765758326162,500.0,0.00013273,2]
[398501512,1765758326278,492.68779205,0.00013273,2]
[398501520,1765758366587,500.0,0.00013273,2]
[398501521,1765758366727,500.0,0.00013273,2]
[398501524,1765758368984,500.0,0.00013273,2]
[398501525,1765758375909,500.0,0.00013273,2]
[398501526,1765758377270,500.0,0.00013273,2]
[398501529,1765758427262,500.0,0.00013273,2]
[398501530,1765758431624,500.0,0.00013273,2]
[398501532,1765758432194,297.39502797,0.00013368,2]
[398501533,1765758446070,500.0,0.00013273,2]
[398501534,1765758487983,500.0,0.00013273,2]
[398501535,1765758494534,500.0,0.00013273,2]
[398501546,1765758541976,-412.09651445,0.00013468,2]
[398501547,1765758544044,-228.06775615,0.00013468,2]
[398501548,1765758545595,-324.17488117,0.00013468,2]
[398501549,1765758550675,-689.620555,0.00013468,2]
[398501550,1765758551019,500.0,0.00013273,2]
[398501552,1765758553223,-157.07141081,0.00013468,2]
[398501553,1765758557495,-373.30333424,0.00013468,2]
[398501555,1765758561507,-226.47638172,0.00013468,2]
[398501556,1765758564709,500.0,0.00013273,2]
[398501557,1765758568114,-154.5657562,0.00013468,2]
[398501558,1765758571764,-241.18535749,0.00013468,2]
[398501559,1765758574835,-206.85224382,0.00013468,2]
[398501560,1765758578014,-159.45,0.00013468,2]
[398501561,1765758582158,-171.88,0.00013468,2]
[398501562,1765758586513,-382.34757164,0.00013468,2]
[398501564,1765758589022,-273.79053834,0.00013468,2]
[398501566,1765758590632,-335.7864361,0.00013468,2]
[398501567,1765758592801,-184.89397798,0.00013468,2]
[398501568,1765758594901,-155.53,0.00013468,2]
[398501569,1765758596838,-256.86390879,0.00013468,2]
[398501570,1765758606957,500.0,0.00013273,2]
[398501571,1765758607200,500.0,0.00013273,2]
[398501572,1765758607326,500.0,0.00013273,2]
[398501573,1765758608430,-66.0433761,0.00013468,2]
[398501574,1765758608457,-87.6366239,0.00013468,2]
[398501575,1765758610504,-252.38170384,0.00013468,2]
[398501576,1765758611608,500.0,0.00013273,2]
[398501577,1765758613003,-238.29097079,0.00013468,2]
[398501578,1765758621289,5000.0,0.00013458,2]
[398501616,1765758632211,-32.69070147,0.00013468,2]
[398501618,1765758632224,-205.93627484,0.000135,2]
[398501620,1765758632233,-1087.0,0.00013598,2]
[398501622,1765758632242,-106.79027958,0.00013599,2]
[398501624,1765758632254,-193.20972042,0.00013599,2]
[398501626,1765758632263,-156.0,0.00013599,2]
[398501628,1765758632273,-51.94817171,0.00013599,2]
[398501680,1765758638145,-248.05182829,0.00013599,2]
[398501681,1765758638155,-300.0,0.00013599,2]
[398501683,1765758638165,-300.0,0.00013599,2]
[398501684,1765758638175,-1820.92817171,0.000136,2]
[398501685,1765758638216,-8179.07182829,0.000136,2]
[398501686,1765758638228,-160.28,0.00013617,2]
[398501687,1765758638239,-12512.6046345,0.00013629,2]
[398501688,1765758638251,-971.06999034,0.00013629,2]
[398501689,1765758638264,-1587.82724308,0.00013629,2]
[398501693,1765758638428,-4928.49813208,0.00013629,2]
[398501694,1765758638439,-300.0,0.00013673,2]
[398501695,1765758638448,-444.19753637,0.0001369,2]
[398501696,1765758638460,-4755.60246363,0.0001369,2]
[398501697,1765758638469,-1001.0,0.0001369,2]
[398501698,1765758638481,-1200.0,0.00013697,2]
[398501699,1765758638491,-498.81599217,0.00013698,2]
[398501700,1765758638500,-901.173475,0.00013699,2]
[398501701,1765758638510,-18550.7080692,0.00013699,2]
[398501702,1765758638523,-3006.72,0.00013699,2]
[398501703,1765758638534,-2739.5793,0.00013699,2]
[398501749,1765758640728,-3e-08,0.00013699,2]
[398501750,1765758640738,-267.72481847,0.00013699,2]
[398501751,1765758640758,-12310.96601675,0.00013699,2]
[398501915,1765758642585,203.10783297,0.00012815,2]
[398501981,1765758643180,-1771.56772645,0.00013699,2]
[398501983,1765758643191,-500.0,0.00013699,2]
[398501985,1765758643200,-500.0,0.00013699,2]
[398501987,1765758643209,-500.0,0.00013699,2]
[398501989,1765758643218,-500.0,0.00013699,2]
[398501991,1765758643227,-47.76588704,0.00013699,2]
[398502025,1765758643544,5000.0,0.00013589,2]
[398502070,1765758646221,-452.23411296,0.00013699,2]
[398502071,1765758646230,-198.00196637,0.00013699,2]
[398502073,1765758646239,-500.0,0.00013699,2]
[398502074,1765758646249,-500.0,0.00013699,2]
[398502076,1765758646259,-500.0,0.00013699,2]
[398502078,1765758646268,-500.00629522,0.00013699,2]
[398502080,1765758646278,-500.0,0.00013699,2]
[398502082,1765758646287,-500.0,0.00013699,2]
[398502083,1765758646297,-500.0,0.00013699,2]
[398502085,1765758646306,-500.0,0.00013699,2]
[398502086,1765758646316,-500.0,0.00013699,2]
[398502087,1765758646325,-500.0,0.00013699,2]
[398502088,1765758646335,-500.0,0.00013699,2]
[398502089,1765758646344,-500.0,0.00013699,2]
[398502090,1765758646354,-500.0,0.00013699,2]
[398502091,1765758646363,-500.0,0.00013699,2]
[398502092,1765758646373,-500.0,0.00013699,2]
[398502093,1765758646382,-292.178,0.0001382,2]
[398502094,1765758646391,-500.0,0.00013821,2]
[398502095,1765758646400,-1000.0,0.00013821,2]
[398502096,1765758646409,-1000.0,0.00013821,2]
[398502097,1765758646418,-1000.0,0.00013821,2]
[398502098,1765758646429,-1000.0,0.00013821,2]
[398502099,1765758646439,-1000.0,0.00013821,2]
[398502100,1765758646448,-1000.0,0.00013821,2]
[398502101,1765758646458,-163.19892177,0.00013973,2]
[398502102,1765758646467,-600.0,0.00014221,2]
[398502103,1765758646476,-500.0,0.00014221,2]
[398502104,1765758646485,-1001.0,0.00014238,2]
[398502105,1765758646495,-500.0,0.00014247,2]
[398502106,1765758646504,-1000.19298973,0.00014247,2]
[398502107,1765758646513,-500.0,0.00014247,2]
[398502108,1765758646522,-1000.0,0.00014247,2]
[398502109,1765758646532,-1000.0,0.00014247,2]
[398502110,1765758646541,-500.0,0.00014247,2]
[398502111,1765758646550,-1000.0,0.00014247,2]
[398502112,1765758646560,-1500.0,0.00014368,2]
[398502113,1765758646569,-1000.0,0.00014368,2]
[398502114,1765758646578,-607.64561163,0.00014368,2]
[398502115,1765758646588,-500.0,0.00014368,2]
[398502116,1765758646597,-1500.0,0.00014368,2]
[398502117,1765758646607,-836.00024543,0.00014368,2]
[398502118,1765758646616,-676.05417907,0.00014476,3]
[398502119,1765758646627,-198.52875852,0.00014476,3]
[398502120,1765758646637,-250.0,0.00014718,2]
[398502121,1765758646647,-250.0,0.00014718,2]
[398502122,1765758646657,-250.0,0.00014718,2]
[398502123,1765758646667,-250.0,0.00014718,2]
[398502124,1765758646676,-470.46064181,0.00014718,2]
[398502125,1765758646686,-250.0,0.00014718,2]
[398502126,1765758646696,-250.0,0.00014718,2]
[398502127,1765758646705,-574.12855637,0.00014718,2]
[398502128,1765758646714,-250.0,0.00014718,2]
[398502129,1765758646723,-250.0,0.00014718,2]
[398502130,1765758646733,-250.0,0.00014718,2]
[398502131,1765758646742,-250.0,0.00014718,2]
[398502132,1765758646750,-250.0,0.00014718,2]
[398502133,1765758646761,-1416.90336423,0.00014725,2]
[398502134,1765758646770,-500.0,0.00014727,2]
[398502135,1765758646780,-500.0,0.0001473,2]
[398502136,1765758646789,-500.0,0.0001473,2]
[398502137,1765758646798,-150.0,0.0001473,2]
[398502138,1765758646806,-500.0,0.0001473,2]
[398502139,1765758646816,-500.0,0.0001473,2]
[398502140,1765758646825,-150.0,0.0001473,2]
[398502141,1765758646834,-500.0,0.0001473,2]
[398502142,1765758646843,-152.64345258,0.0001473,2]
[398502143,1765758646852,-534.04904452,0.00014763,2]
[398502144,1765758646861,-949.42052359,0.00014763,2]
[398502145,1765758646870,-1481.98609854,0.00014763,2]
[398502146,1765758646879,-189.68341319,0.00014763,2]
[398502147,1765758646889,-278.80498886,0.00014763,2]
[398502148,1765758646898,-435.1971623,0.00014763,2]
[398502149,1765758646906,-861.16801766,0.00014768,2]
[398502150,1765758646915,-1001.0,0.00014786,2]
[398502151,1765758646924,-1500.0,0.00014795,2]
[398502153,1765758646934,-1500.0,0.00014795,2]
[398502154,1765758646944,-7034.88275217,0.00014826,2]
[398502165,1765758648304,-427.61912597,0.00014826,2]
[398502166,1765758648318,-766.2796,0.00014826,2]
[398502167,1765758665510,282.768256,0.00013217,2]
[398502168,1765758667262,508.9828608,0.00013684,2]
[398502169,1765758670071,300.0,0.00013673,2]
[398502170,1765758671437,500.0,0.00013699,2]
[398502171,1765758672838,500.0,0.00013273,2]
[398502172,1765758672897,1000.0,0.00013821,2]
[398502173,1765758673767,5000.0,0.00014048,2]
[398502174,1765758676562,500.0,0.00013699,2]
[398502175,1765758693736,1000.0,0.00013699,2]
[398502178,1765758696683,691.0271392,0.00014048,2]
[398502179,1765758696708,4308.9728608,0.00014048,2]
[398502180,1765758727265,500.0,0.00013699,2]
[398502181,1765758728445,500.0,0.00013273,2]
[398502182,1765758728491,1000.0,0.00013821,2]
[398502183,1765758789012,300.0,0.00013673,2]
[398502184,1765758791579,500.0,0.00013273,2]
[398502186,1765758847063,500.0,0.00013273,2]
[398502187,1765758848244,273.4299464,0.0001339,2]
[398502188,1765758861777,5000.0,0.00013699,2]
[398502291,1765758884535,3426.5800536,0.00013699,2]
[398502293,1765758884558,1573.4199464,0.00013699,2]
[398502348,1765758892386,5000.0,0.00013699,2]
[398502349,1765758898945,-500.0,0.00013699,2]
[398502350,1765758898967,-500.0,0.00013699,2]
[398502351,1765758898989,-500.0,0.00013699,2]
[398502352,1765758899011,-500.0,0.00013699,2]
[398502353,1765758899033,-1000.0,0.00013821,2]
[398502354,1765758899055,-1000.0,0.00013821,2]
[398502355,1765758899077,-303.4570577,0.00013925,2]
[398502356,1765758899097,-266.22297203,0.00013964,2]
[398502357,1765758899118,-426.63575256,0.00014,2]
[398502358,1765758899139,-300.0,0.0001415,2]
[398502359,1765758899160,-904.8584192,0.00014151,2]
[398502360,1765758899180,-1000.0,0.00014247,2]
[398502361,1765758899201,-1000.0,0.00014247,2]
[398502362,1765758899221,-1000.0,0.00014247,2]
[398502363,1765758899242,-1000.0,0.00014247,2]
[398502364,1765758899263,-1500.0,0.00014368,2]
[398502365,1765758899284,-1500.0,0.00014368,2]
[398502366,1765758899305,-5707.2758976,0.00014418,2]
[398502367,1765758899327,-341.58519124,0.00014506,2]
[398502368,1765758899349,-304.25482518,0.00014525,2]
[398502369,1765758899370,-150.0,0.00014593,2]
[398502370,1765758899392,-150.0,0.00014593,2]
[398502371,1765758899413,-500.0,0.00014593,2]
[398502372,1765758899435,-150.0,0.00014593,2]
[398502373,1765758899456,-1413.84127999,0.00014618,2]
[398502374,1765758899477,-152.64345259,0.00014628,2]
[398502375,1765758899499,-12592.2713917,0.00014633,2]
[398502376,1765758899519,-3479.4721976,0.00014633,2]
[398502377,1765758899541,-150.0,0.0001473,2]
[398502378,1765758899563,-150.0,0.0001473,2]
[398502379,1765758899585,-500.0,0.0001473,2]
[398502380,1765758899606,-150.0,0.0001473,2]
[398502381,1765758899628,-1500.0,0.00014795,2]
[398502382,1765758899894,-1500.0,0.00014795,2]
[398502383,1765758899917,-1500.0,0.00014795,2]
[398502384,1765758899938,-233.742,0.00014825,2]
[398502385,1765758899959,-402.65834313,0.00014825,2]
[398502386,1765758899982,-18044.47840856,0.00014826,2]
[398502387,1765758900004,-253.76285516,0.00014867,2]
[398502388,1765758900026,-296.0,0.00014867,2]
[398502389,1765758900050,-500.0,0.00014867,2]
[398502390,1765758900074,-150.0,0.00014867,2]
[398502391,1765758900100,-500.0,0.00014867,2]
[398502392,1765758900122,-150.0,0.00014867,2]
[398502393,1765758900147,-341.08871359,0.00014898,2]
[398502394,1765758900169,-2000.0,0.00014916,2]
[398502395,1765758900191,-500.0,0.00014916,2]
[398502396,1765758900213,-500.0,0.00015,2]
[398502397,1765758900235,-500.0,0.00015,30]
[398502398,1765758900256,-416.00162057,0.00015004,2]
[398502399,1765758900278,-150.0,0.00015004,2]
[398502400,1765758900299,-150.0,0.00015004,2]
[398502401,1765758900320,-500.0,0.00015004,2]
[398502402,1765758900342,-180.9518928,0.00015015,2]
[398502403,1765758900365,-300.0,0.00015024,2]
[398502404,1765758900388,-300.0,0.00015024,2]
[398502405,1765758900412,-300.0,0.00015024,2]
[398502406,1765758900436,-300.0,0.00015024,2]
[398502407,1765758900458,-300.0,0.00015024,2]
[398502408,1765758900482,-300.0,0.00015024,2]
[398502409,1765758900504,-300.0,0.00015024,2]
[398502410,1765758900526,-300.0,0.00015024,2]
[398502411,1765758900548,-300.0,0.00015024,2]
[398502412,1765758900571,-300.0,0.00015024,2]
[398502413,1765758900593,-300.0,0.00015024,2]
[398502414,1765758900616,-300.0,0.00015024,2]
[398502415,1765758900640,-300.0,0.00015024,2]
[398502416,1765758900663,-300.0,0.00015024,2]
[398502417,1765758900685,-300.0,0.00015024,2]
[398502418,1765758900707,-249.31269,0.00015068,2]
[398502419,1765758900728,-272.70517618,0.00015068,2]
[398502420,1765758900752,-2035.93144319,0.00015085,2]
[398502421,1765758900774,-475.39816435,0.00015085,2]
[398502422,1765758900796,-600.0,0.0001509,2]
[398502423,1765758900818,-250.0,0.00015141,2]
[398502424,1765758900840,-250.0,0.00015141,2]
[398502425,1765758900862,-500.0,0.00015141,2]
[398502426,1765758900884,-595.37131296,0.00015266,2]
[398502427,1765758900907,-500.0,0.00015275,2]
[398502428,1765758900929,-500.0,0.00015278,2]
[398502429,1765758900951,-1001.0,0.00015334,2]
[398502430,1765758900971,-2000.0,0.00015342,2]
[398502431,1765758900992,-2000.0,0.00015342,2]
[398502432,1765758901013,-2000.0,0.00015342,2]
[398502433,1765758901034,-632.0,0.00015411,2]
[398502434,1765758901055,-1360.0,0.00015411,2]
[398502435,1765758901075,-2157.0,0.00015411,2]
[398502436,1765758901098,-491.346,0.00015411,2]
[398502437,1765758901120,-500.0,0.00015415,2]
[398502438,1765758901142,-2500.0,0.00015464,2]
[398502439,1765758901164,-420.0,0.000155,2]
[398502440,1765758901186,-218.162,0.00015552,2]
[398502441,1765758901208,-237.567,0.00015552,2]
[398502442,1765758901228,-250.0,0.00015552,2]
[398502443,1765758901248,-258.358,0.00015552,2]
[398502444,1765758901270,-266.29,0.00015552,2]
[398502445,1765758901292,-500.0,0.00015552,2]
[398502446,1765758901317,-600.0,0.00015776,2]
[398502447,1765758901341,-617.40005154,0.00015814,2]
[398502448,1765758901364,-500.0,0.00015823,2]
[398502449,1765758901387,-1001.0,0.00015882,2]
[398502450,1765758901409,-2500.0,0.0001589,2]
[398502451,1765758901432,-2500.0,0.0001589,2]
[398502452,1765758901454,-2500.0,0.0001589,2]
[398502453,1765758901477,-358.07932809,0.00015925,2]
[398502454,1765758901499,-600.0,0.0001594,2]
[398502455,1765758901523,-1103.66982762,0.00015959,3]
[398502456,1765758901546,-224.1060838,0.00015972,3]
[398502457,1765758901573,-90614.10065107,0.0001599,2]
[398502458,1765758908692,-500.0,0.00013273,2]
[398502459,1765758908714,-41.66045493,0.00013273,2]
[398502460,1765758910886,-165.92037864,0.00013273,2]
[398502461,1765758912441,-254.70336612,0.00013273,2]
[398502462,1765758913957,-37.71580031,0.00013273,2]
[398502463,1765758913983,-117.23419969,0.00013273,2]
[398502464,1765758918134,-382.76580031,0.00013273,2]
[398502465,1765758918162,-500.0,0.00013273,2]
[398502466,1765758938317,5000.0,0.00013699,2]
[398502467,1765759026974,500.0,0.00013273,2]
[398502468,1765759033940,500.0,0.00013273,2]
[398502469,1765759102440,4000.01,0.00013699,2]
[398502470,1765759102462,999.99,0.00013699,2]
[398502471,1765759124875,5000.0,0.00013699,2]
[398502472,1765759147186,4000.02,0.00013699,2]
[398502473,1765759147206,999.98,0.00013699,2]
[398502474,1765759147881,500.0,0.00013273,2]
[398502475,1765759154731,500.0,0.00013273,2]
[398502476,1765759169520,5000.0,0.00013699,2]
[398502478,1765759191562,3000.03,0.00013699,2]
[398502479,1765759191583,1999.97,0.00013699,2]
[398502480,1765759213884,5000.0,0.00013699,2]
[398502482,1765759227011,350.0,0.000165,59]
[398502483,1765759236104,3000.04,0.00013699,2]
[398502484,1765759236129,1999.96,0.00013699,2]
[398502485,1765759240186,179.45189139,0.00013145,2]
[398502486,1765759249757,-500.0,0.00013699,2]
[398502487,1765759249786,-500.0,0.00013699,2]
[398502488,1765759249815,-500.0,0.00013699,2]
[398502489,1765759249844,-615.0,0.00013699,2]
[398502490,1765759258411,5000.0,0.00013699,2]
[398502491,1765759262249,157.01,0.00012,2]
[398502492,1765759262675,157.01,0.000122,2]
[398502493,1765759263187,157.01,0.000123,2]
[398502494,1765759263503,157.01,0.000125,2]
[398502495,1765759263798,141.97,0.000127,2]
[398502496,1765759263821,15.04,0.000127,2]
[398502497,1765759264221,157.01,0.000128,2]
[398502498,1765759264735,157.01,0.00013,2]
[398502499,1765759264816,157.01,0.000132,2]
[398502500,1765759265156,157.01,0.000133,2]
[398502501,1765759265445,157.01,0.000135,2]
[398502502,1765759266606,500.0,0.00013273,2]
[398502503,1765759270075,500.0,0.00013699,2]
[398502504,1765759273420,500.0,0.00013273,2]
[398502505,1765759276124,226.91492213,0.00013699,2]
[398502506,1765759282093,5000.0,0.00013699,2]
[398502507,1765759305030,2473.00507787,0.00013699,2]
[398502508,1765759305058,2526.99492213,0.00013699,2]
[398502509,1765759324728,157.02,0.00012,2]
[398502510,1765759324782,500.0,0.00013273,2]
[398502511,1765759324808,500.0,0.00013699,2]
[398502512,1765759325221,157.02,0.00013,2]
[398502513,1765759327424,5000.0,0.00013699,2]
[398502514,1765759335467,377.25524305,0.00013273,2]
[398502515,1765759335501,781.71983482,0.00013699,2]
[398502516,1765759335521,4218.28016518,0.00013699,2]
[398502517,1765759336153,500.0,0.00013699,2]
[398502518,1765759336478,500.0,0.00013699,2]
[398502519,1765759339184,-291.32750975,0.0001376,2]
[398502520,1765759350475,5000.0,0.0001376,2]
[398502521,1765759358197,5000.0,0.000138,2]
[398502522,1765759373430,5000.0,0.000138,2]
[398502523,1765759392410,0.01,0.00013699,2]
[398502524,1765759392431,499.99,0.00013699,2]
[398502525,1765759393666,273.71,6.989e-05,2]
[398502526,1765759394114,547.43,7.322e-05,2]
[398502527,1765759394498,821.14,7.654e-05,2]
[398502528,1765759394902,1094.86,7.987e-05,2]
[398502529,1765759395299,1368.57,8.32e-05,2]
[398502530,1765759395701,1642.29,8.653e-05,2]
[398502531,1765759395866,3752.02,0.000138,2]
[398502532,1765759395889,1247.98,0.000138,2]
[398502533,1765759396099,1916.0,8.986e-05,2]
[398502534,1765759396342,500.0,0.00013273,2]
[398502535,1765759396523,2189.72,9.319e-05,2]
[398502536,1765759396912,2463.43,9.651e-05,2]
[398502537,1765759397306,1682.88,9.984e-05,2]
[398502538,1765759397330,1054.27,9.984e-05,2]